bitfinex/quotes_SOLUSD_20251120
["timestamp","ask_amount","ask_price","bid_price","bid_amount"]
[1763664522832,0.71,133.22,133.2,12.28013436]
[1763664523047,50.0,133.23,133.21,12.28013436]
[1763664523048,50.71,133.23,133.21,12.28013436]
[1763664524156,50.0,133.23,133.21,12.28013436]
[1763664524532,50.0,133.23,133.22,12.28013436]
[1763664524729,50.71,133.23,133.22,12.28013436]
[1763664526445,50.0,133.23,133.22,12.28013436]
[1763664526755,50.0,133.23,133.21,0.67]
[1763664526756,50.0,133.25,133.2,0.67]
[1763664526942,50.0,133.25,133.24,12.28013436]
[1763664527140,50.71,133.25,133.23,12.28013436]
[1763664527336,50.0,133.23,133.22,12.28013436]
[1763664527536,50.0,133.23,133.21,12.28013436]
[1763664527860,50.71,133.23,133.21,12.28013436]
[1763664528041,50.71,133.23,133.19,0.67]
[1763664528245,50.71,133.23,133.21,12.28013436]
[1763664528429,50.0,133.21,133.2,12.28013436]
[1763664528892,50.71,133.21,133.2,12.28013436]
[1763664529664,50.0,133.21,133.2,12.28013436]
[1763664529962,50.0,133.23,133.2,12.28013436]
[1763664530161,50.71,133.23,133.21,12.28013436]
[1763664531562,50.0,133.21,133.17,0.66]
[1763664531875,50.0,133.21,133.2,12.28013436]
[1763664533236,50.0,133.23,133.2,12.28013436]
[1763664533434,50.0,133.23,133.22,12.28013436]
[1763664533943,50.0,133.23,133.2,0.66]
[1763664534142,50.0,133.23,133.22,12.28013436]
[1763664534560,50.0,133.21,133.2,12.28013436]
[1763664539164,50.0,133.21,133.18,0.66]
[1763664539363,50.0,133.21,133.2,12.28013436]
[1763664539669,50.0,133.21,133.17,0.66]
[1763664539968,50.0,133.21,133.12,63.19999999]
[1763664539969,50.0,133.17,133.13,12.28013436]
[1763664540185,51.82,133.17,133.13,12.28013436]
[1763664540344,50.0,133.15,133.13,12.28013436]
[1763664540549,50.0,133.13,133.09,0.66]
[1763664540881,50.0,133.13,133.12,12.28013436]
[1763664541548,50.0,133.13,133.08,9.78882769]
[1763664541750,50.0,133.15,133.12,12.28013436]
[1763664542089,50.0,133.13,133.1,12.28013436]
[1763664542376,50.0,133.13,133.11,12.28013436]
[1763664542583,50.69,133.13,133.11,12.28013436]
[1763664543764,50.69,133.13,133.12,12.28013436]
[1763664543765,50.0,133.13,133.12,12.28013436]
[1763664544476,50.69,133.13,133.08,22.27899908]
[1763664544680,50.69,133.13,133.11,12.28013436]
[1763664544852,50.69,133.13,133.12,12.28013436]
[1763664545246,50.69,133.13,133.11,12.28013436]
[1763664545749,2.51,133.12,133.11,61.2]
[1763664546261,50.0,133.11,133.09,73.48013436]
[1763664546777,50.0,133.09,133.07,12.38013436]
[1763664546942,50.0,133.09,133.07,0.1]
[1763664547152,0.69,133.08,133.07,0.1]
[1763664549188,50.0,133.09,133.07,7.95185042]
[1763664549486,50.0,133.09,133.08,7.85185042]
[1763664549862,50.0,133.09,133.07,0.1]
[1763664550184,50.0,133.09,133.08,7.85185042]
[1763664551422,50.0,133.09,133.08,8.51185042]
[1763664552757,50.0,133.09,133.08,7.85185042]
[1763664554686,50.0,133.09,133.08,69.05185042]
[1763664554891,50.0,133.09,133.08,64.49658658]
[1763664555073,50.0,133.09,133.08,65.15658658]
[1763664555282,50.0,133.09,133.08,64.49658658]
[1763664555899,50.0,133.09,133.08,65.15658658]
[1763664556297,50.0,133.09,133.08,64.49658658]
[1763664556509,52.51,133.09,133.07,0.1]
[1763664556796,0.69,133.08,133.07,0.1]
[1763664557579,8.54362087,133.08,133.07,0.1]
[1763664558176,26.66458087,133.08,133.07,0.1]
[1763664559003,50.0,133.09,133.07,8.61362087]
[1763664559308,50.0,133.09,133.08,7.85362087]
[1763664559801,50.0,133.13,133.08,8.51362087]
[1763664559969,50.0,133.13,133.12,7.85362087]
[1763664561300,50.0,133.13,133.07,0.1]
[1763664561502,50.0,133.13,133.11,7.85362087]
[1763664561685,51.82,133.13,133.1,7.85362087]
[1763664561880,0.69,133.12,133.1,7.85362087]
[1763664562277,50.0,133.1,133.08,7.85362087]
[1763664562498,50.0,133.1,133.09,7.85362087]
[1763664563802,50.0,133.1,133.07,0.81]
[1763664564003,50.0,133.1,133.09,7.85362087]
[1763664565107,50.0,133.12,133.09,8.56362087]
[1763664565310,50.0,133.12,133.11,7.85362087]
[1763664565512,50.0,133.12,133.11,69.05362087]
[1763664566396,50.0,133.12,133.11,61.2]
[1763664566915,50.69,133.12,133.11,61.2]
[1763664569723,50.0,133.1,133.09,61.2]
[1763664569889,50.0,133.08,133.07,0.1]
[1763664570090,57.85362087,133.08,133.07,0.1]
[1763664570289,50.67,133.08,133.07,0.1]
[1763664571816,52.49,133.08,133.07,0.1]
[1763664572009,50.0,133.08,133.07,0.1]
[1763664573227,136.43340856,133.08,133.07,0.1]
[1763664573394,9.78882769,133.07,133.06,0.1]
[1763664573719,10.45882769,133.07,133.06,0.1]
[1763664574027,18.31244856,133.07,133.06,0.1]
[1763664575393,20.31244855,133.07,133.06,0.1]
[1763664575721,53.54784733,133.07,133.06,0.1]
[1763664575889,45.26568868,133.07,133.06,0.1]
[1763664576096,20.13244856,133.07,133.06,0.1]
[1763664576543,103.66407158,133.08,133.06,0.1]
[1763664576821,1.82,133.07,133.06,0.1]
[1763664577022,1.82,133.07,133.06,7.95362087]
[1763664577224,50.0,133.08,133.06,7.95362087]
[1763664577521,50.0,133.1,133.07,8.55362087]
[1763664577729,50.0,133.1,133.09,7.85362087]
[1763664578110,50.0,133.1,133.09,8.55362087]
[1763664579518,50.0,133.1,133.06,7.95362087]
[1763664579820,1.82,133.09,133.07,7.85362087]
[1763664580012,1.82,133.09,133.07,8.55362087]
[1763664581329,1.82,133.09,133.06,0.1]
[1763664581330,50.0,133.08,133.06,7.95362087]
[1763664583206,50.0,133.08,133.07,7.85362087]
[1763664583695,50.0,133.08,133.06,0.1]
[1763664584002,50.0,133.08,133.06,7.95362087]
[1763664584425,50.0,133.08,133.06,69.85362087]
[1763664584794,50.0,133.08,133.06,61.3]
[1763664586915,50.0,133.08,133.07,7.85362087]
[1763664587122,50.0,133.08,133.07,8.55362087]
[1763664587738,50.0,133.08,133.07,7.85362087]
[1763664589852,50.0,133.08,133.06,69.15362087]
[1763664590220,50.0,133.08,133.06,69.86362087]
[1763664590556,1.82,133.07,133.06,61.3]
[1763664591548,1.82,133.07,133.06,69.15362087]
[1763664591731,51.82,133.08,133.06,69.15362087]
[1763664591931,51.82,133.08,133.06,69.86362087]
[1763664592249,50.0,133.08,133.07,7.85362087]
[1763664594452,50.0,133.08,133.07,8.56362087]
[1763664594822,50.0,133.08,133.07,7.85362087]
[1763664596257,50.0,133.08,133.07,69.05362087]
[1763664596814,50.0,133.08,133.07,69.76362087]
[1763664597032,51.82,133.1,133.07,69.76362087]
[1763664597326,51.82,133.1,133.08,8.56362087]
[1763664600553,51.82,133.1,133.08,0.71]
[1763664600960,51.82,133.1,133.08,4.00695287]
[1763664601528,50.0,133.12,133.09,4.00695287]
[1763664601758,51.82,133.14,133.11,3.29695287]
[1763664601936,52.53,133.14,133.11,4.00695287]
[1763664602133,51.82,133.14,133.11,4.00695287]
[1763664602438,52.53,133.14,133.11,3.29695287]
[1763664602640,51.82,133.14,133.11,4.00695287]
[1763664602846,51.82,133.14,133.11,8.55537061]
[1763664603733,51.82,133.14,133.12,8.55537061]
[1763664603940,50.0,133.12,133.06,61.3]
[1763664604153,7.84537061,133.07,133.06,0.1]
[1763664604459,71.45419829,133.07,133.06,0.1]
[1763664604660,71.45419829,133.07,133.02,0.1]
[1763664604661,50.0,133.03,133.02,0.1]
[1763664604825,119.4541983,133.03,133.02,0.1]
[1763664605158,120.1641983,133.03,133.02,0.1]
[1763664605348,118.3441983,133.03,133.02,0.1]
[1763664605666,122.16419829,133.03,133.02,0.1]
[1763664605823,144.78419829,133.03,133.02,0.1]
[1763664606031,34.40882768,133.02,133.01,0.1]
[1763664606246,34.40882768,133.02,132.95,2.03593088]
[1763664606247,50.0,132.96,132.95,2.03593088]
[1763664606440,61.60882769,132.96,132.95,2.03593088]
[1763664606734,70.1241983,132.96,132.95,2.03593088]
[1763664606947,74.61725972,132.96,132.95,2.03593088]
[1763664607231,76.61725971,132.96,132.95,2.03593088]
[1763664608278,129.90978768,132.94,132.9,0.1]
[1763664608444,109.78882769,132.91,132.9,0.1]
[1763664608642,122.12725972,132.91,132.9,0.1]
[1763664608862,124.51725972,132.91,132.9,0.1]
[1763664609662,82.84939203,132.91,132.9,0.1]
[1763664609855,68.12096,132.91,132.9,0.1]
[1763664610059,69.94096,132.91,132.9,0.1]
[1763664610269,142.63821972,132.91,132.9,0.1]
[1763664610456,130.29978769,132.91,132.9,0.1]
[1763664610661,142.63821972,132.91,132.9,0.1]
[1763664610970,124.51725972,132.91,132.9,0.1]
[1763664611365,129.54799899,132.91,132.9,0.1]
[1763664611679,119.20956695,132.91,132.9,0.1]
[1763664611856,137.8445151,132.91,132.9,0.1]
[1763664612057,131.54799898,132.91,132.9,0.1]
[1763664612265,127.72799899,132.91,132.9,0.1]
[1763664612462,124.51725972,132.91,132.9,0.1]
[1763664612856,129.54045266,132.91,132.9,0.1]
[1763664613055,124.51725972,132.91,132.9,0.1]
[1763664613575,140.81821972,132.91,132.9,0.1]
[1763664613779,142.63821972,132.91,132.9,0.1]
[1763664613981,112.17882769,132.91,132.9,0.1]
[1763664614150,142.63821972,132.91,132.9,0.1]
[1763664614553,130.29978769,132.91,132.9,0.1]
[1763664614861,142.63821972,132.91,132.9,0.1]
[1763664615659,130.29978769,132.91,132.9,0.1]
[1763664615965,124.51725972,132.91,132.9,0.1]
[1763664616164,129.52713533,132.91,132.9,0.1]
[1763664616379,131.52713532,132.91,132.9,0.1]
[1763664618157,131.52713532,132.91,132.76,0.1]
[1763664618158,50.0,132.8,132.76,0.1]
[1763664618377,1.99999999,132.88,132.76,0.81]
[1763664618378,50.0,132.77,132.76,0.81]
[1763664618557,50.0,132.77,132.76,13.14843203]
[1763664618875,50.0,132.79,132.76,13.14843203]
[1763664619077,50.0,132.79,132.78,12.33843203]
[1763664619457,50.0,132.79,132.76,0.1]
[1763664619774,50.0,132.77,132.76,0.1]
[1763664620166,50.0,132.77,132.76,0.81]
[1763664620756,50.0,132.77,132.76,0.1]
[1763664621708,62.90843203,132.77,132.76,0.1]
[1763664621983,60.35882769,132.77,132.76,0.1]
[1763664622187,77.90978769,132.77,132.76,0.1]
[1763664622504,82.84939203,132.77,132.76,0.1]
[1763664622660,69.94096,132.77,132.76,0.1]
[1763664622868,50.0,132.77,132.76,13.09843203]
[1763664623105,50.0,132.77,132.76,0.1]
[1763664623411,122.69725972,132.77,132.76,0.1]
[1763664624097,124.69725971,132.77,132.76,0.1]
[1763664624281,122.69725972,132.77,132.76,0.1]
[1763664624487,124.51725972,132.77,132.76,0.1]
[1763664624799,50.0,132.77,132.76,0.1]
[1763664624998,50.0,132.77,132.76,13.09843203]
[1763664625173,50.0,132.77,132.76,0.76]
[1763664625378,50.0,132.77,132.76,13.09843203]
[1763664625695,50.0,132.77,132.76,0.1]
[1763664626069,50.0,132.77,132.76,13.09843203]
[1763664626772,50.0,132.79,132.76,13.09843203]
[1763664626987,50.0,132.79,132.78,12.33843203]
[1763664627191,50.0,132.79,132.77,0.66]
[1763664628278,50.0,132.79,132.78,12.33843203]
[1763664628483,50.0,132.81,132.78,12.33843203]
[1763664628708,50.0,132.83,132.79,0.66]
[1763664628876,50.0,132.83,132.81,12.33843203]
[1763664629203,50.0,132.83,132.82,12.33843203]
[1763664629375,50.0,132.85,132.82,12.33843203]
[1763664629576,50.0,132.81,132.79,0.66]
[1763664629794,50.0,132.81,132.79,12.99843203]
[1763664629974,50.0,132.81,132.79,0.66]
[1763664630698,50.0,132.81,132.8,12.33843203]
[1763664630902,14.15843203,132.85,132.8,12.33843203]
[1763664631197,14.15843203,132.85,132.8,0.67]
[1763664631403,14.15843203,132.85,132.81,0.67]
[1763664631776,50.0,132.82,132.81,0.67]
[1763664632302,1.82,132.85,132.81,0.67]
[1763664632472,14.15843203,132.85,132.81,0.67]
[1763664633091,1.82,132.85,132.81,0.67]
[1763664633296,14.15843203,132.85,132.81,0.67]
[1763664633504,1.82,132.85,132.81,0.67]
[1763664633685,18.12096,132.86,132.83,12.33843203]
[1763664633686,50.0,132.84,132.83,12.33843203]
[1763664633884,50.0,132.84,132.83,0.67]
[1763664634100,50.0,132.82,132.8,13.00843203]
[1763664634283,50.0,132.82,132.8,12.33843203]
[1763664634486,50.0,132.82,132.81,0.67]
[1763664636603,50.0,132.82,132.81,13.00843203]
[1763664636780,50.0,132.86,132.81,13.00843203]
[1763664636981,50.0,132.86,132.83,12.33843203]
[1763664637401,50.0,132.86,132.84,0.67]
[1763664637911,50.0,132.86,132.84,13.00843203]
[1763664638283,51.82,132.88,132.85,13.00843203]
[1763664638498,51.82,132.88,132.86,0.67]
[1763664638693,51.82,132.88,132.86,13.00843203]
[1763664638897,50.0,132.88,132.87,12.33843203]
[1763664639109,50.0,132.88,132.87,74.20843203]
[1763664640102,50.0,132.88,132.87,61.87]
[1763664640411,50.0,132.88,132.87,74.20843203]
[1763664641999,50.0,132.88,132.87,13.00843203]
[1763664642204,51.82,132.9,132.87,13.00843203]
[1763664642390,50.0,132.9,132.89,12.33843203]
[1763664642591,50.0,132.9,132.89,13.00843203]
[1763664642781,50.0,132.9,132.87,13.00843203]
[1763664643197,50.0,132.9,132.88,0.67]
[1763664644094,50.0,132.9,132.88,13.00843203]
[1763664644296,50.0,132.9,132.89,12.33843203]
[1763664644627,50.0,132.92,132.89,13.00843203]
[1763664644808,50.0,132.92,132.91,12.33843203]
[1763664645119,50.0,132.92,132.9,13.00843203]
[1763664645803,50.0,132.9,132.87,12.33843203]
[1763664646007,51.82,132.9,132.87,12.33843203]
[1763664646209,51.82,132.9,132.88,0.67]
[1763664647100,51.82,132.9,132.88,13.00843203]
[1763664647306,50.0,132.92,132.89,12.33843203]
[1763664647507,50.0,132.92,132.91,12.33843203]
[1763664647715,50.0,132.92,132.91,0.67]
[1763664647923,50.0,132.92,132.91,13.00843203]
[1763664648518,50.0,132.92,132.89,0.67]
[1763664648729,50.0,132.92,132.91,13.00843203]
[1763664650290,55.02123724,132.92,132.91,13.00843203]
[1763664650494,55.02123724,132.92,132.9,12.33843203]
[1763664650694,5.02123724,132.91,132.9,13.01843203]
[1763664651006,50.0,132.92,132.9,12.33843203]
[1763664651214,5.02161572,132.91,132.87,0.68]
[1763664651407,50.0,132.9,132.87,61.88]
[1763664651610,50.0,132.9,132.88,12.33843203]
[1763664651910,50.0,132.9,132.89,12.33843203]
[1763664652125,55.02344503,132.9,132.89,13.01843203]
[1763664652338,1.82,132.92,132.89,74.21843203]
[1763664652339,51.82,132.92,132.89,74.21843203]
[1763664652497,51.82,132.92,132.9,0.68]
[1763664652498,5.02417204,132.91,132.9,0.68]
[1763664653026,51.82,132.92,132.9,0.68]
[1763664653514,51.82,132.92,132.9,13.01843203]
[1763664653827,50.0,132.89,132.88,12.33843203]
[1763664654006,55.0252144,132.89,132.88,61.2]
[1763664654201,56.8452144,132.89,132.88,61.2]
[1763664654628,56.8452144,132.89,132.88,74.21843203]
[1763664654801,51.82,132.89,132.88,74.21843203]
[1763664655002,56.84637925,132.89,132.88,61.2]
[1763664657299,62.0889958,132.89,132.88,61.2]
[1763664657534,50.0,132.87,132.85,74.21843203]
[1763664657735,50.0,132.87,132.86,0.68]
[1763664658031,60.27091661,132.87,132.86,0.68]
[1763664658235,55.24261924,132.87,132.86,0.68]
[1763664658440,55.24261924,132.87,132.85,61.2]
[1763664658603,5.24261924,132.86,132.85,61.2]
[1763664659133,5.24261924,132.86,132.84,74.21843203]
[1763664660040,5.24261924,132.86,132.85,0.68]
[1763664660233,50.0,132.87,132.85,13.01843203]
[1763664660447,50.0,132.85,132.83,0.68]
[1763664660634,5.24434557,132.84,132.83,12.33843203]
[1763664660838,50.0,132.83,132.8,33.01843203]
[1763664661041,5.24356411,132.82,132.81,0.68]
[1763664661227,50.0,132.83,132.81,0.68]
[1763664661433,1.82,132.84,132.82,12.33843203]
[1763664661645,50.0,132.87,132.83,12.33843203]
[1763664661948,50.0,132.87,132.85,12.33843203]
[1763664662153,50.0,132.87,132.86,0.68]
[1763664662446,55.24289613,132.87,132.81,22.46890264]
[1763664662647,50.0,132.87,132.83,12.33843203]
[1763664662831,5.24334144,132.86,132.83,12.33843203]
[1763664663029,5.24334144,132.86,132.84,0.68]
[1763664663226,50.0,132.83,132.8,20.0]
[1763664663443,50.0,132.81,132.8,20.0]
[1763664663621,55.24476774,132.81,132.8,20.0]
[1763664663819,50.0,132.81,132.8,20.0]
[1763664664722,50.66,132.81,132.8,20.0]
[1763664665029,50.0,132.81,132.8,20.0]
[1763664665229,50.66,132.81,132.8,20.0]
[1763664665546,50.0,132.81,132.8,20.0]
[1763664665758,50.0,132.83,132.8,20.68]
[1763664665922,50.0,132.83,132.81,13.01843203]
[1763664666318,50.0,132.83,132.82,0.68]
[1763664666833,50.0,132.83,132.82,13.01843203]
[1763664667030,50.0,132.86,132.82,13.01843203]
[1763664667332,50.0,132.86,132.82,0.68]
[1763664667333,50.0,132.83,132.82,0.68]
[1763664667528,50.0,132.85,132.82,12.33843203]
[1763664667864,50.0,132.88,132.84,12.33843203]
[1763664668074,50.0,132.91,132.87,12.33843203]
[1763664668253,50.0,132.89,132.85,13.01843203]
[1763664668430,50.0,132.89,132.85,0.68]
[1763664668631,50.0,132.89,132.82,18.12096]
[1763664668632,50.0,132.89,132.87,12.33843203]
[1763664668953,50.0,132.89,132.86,7.87438112]
[1763664669143,50.0,132.89,132.86,8.55438112]
[1763664669336,50.0,132.89,132.86,7.87438112]
[1763664669543,50.0,132.89,132.86,8.55438112]
[1763664670465,50.0,132.89,132.86,0.68]
[1763664670633,50.0,132.87,132.83,7.87438112]
[1763664670834,51.82,132.87,132.81,1.82]
[1763664671062,5.25645241,132.86,132.82,8.55438112]
[1763664671260,50.0,132.85,132.81,9.69438112]
[1763664671436,7.07645241,132.84,132.82,0.68]
[1763664671634,1.82,132.84,132.82,0.68]
[1763664671836,1.82,132.84,132.8,28.55438112]
[1763664672148,1.82,132.84,132.81,0.68]
[1763664672335,55.25868318,132.83,132.8,20.0]
[1763664672535,5.25868318,132.82,132.8,20.0]
[1763664673637,50.0,132.81,132.8,20.0]
[1763664673850,55.25868318,132.81,132.8,20.0]
[1763664674077,50.0,132.83,132.8,27.87438112]
[1763664674262,50.0,132.83,132.8,20.0]
[1763664674454,50.0,132.83,132.82,7.87438112]
[1763664675341,50.0,132.83,132.8,20.68]
[1763664675342,55.25736707,132.83,132.8,27.87438112]
[1763664675547,50.0,132.83,132.8,20.0]
[1763664675759,5.2570717,132.82,132.8,20.0]
[1763664675942,5.2570717,132.82,132.8,20.68]
[1763664676460,5.2570717,132.82,132.8,28.55438112]
[1763664676648,5.2570717,132.82,132.8,20.68]
[1763664677044,50.0,132.83,132.81,8.55438112]
[1763664677241,50.0,132.85,132.82,7.87438112]
[1763664677449,5.2585661,132.84,132.83,0.68]
[1763664677749,50.0,132.85,132.83,0.68]
[1763664678265,51.82,132.87,132.84,7.87438112]
[1763664678439,5.25754468,132.86,132.83,7.87438112]
[1763664678634,5.25754468,132.86,132.83,8.55438112]
[1763664678868,5.25754468,132.86,132.83,7.87438112]
[1763664679102,5.25754468,132.86,132.83,8.55438112]
[1763664679277,5.25754468,132.86,132.83,7.87438112]
[1763664679441,5.25754468,132.86,132.84,0.68]
[1763664680078,5.25754468,132.86,132.84,8.55438112]
[1763664680260,50.0,132.87,132.8,29.69438112]
[1763664680261,50.0,132.89,132.85,8.55438112]
[1763664680562,5.25859568,132.88,132.86,7.87438112]
[1763664680760,5.25859568,132.88,132.86,8.58438112]
[1763664681540,5.25859568,132.88,132.85,7.87438112]
[1763664681746,5.25859568,132.88,132.84,7.87438112]
[1763664682456,5.25859568,132.88,132.85,8.58438112]
[1763664683049,5.25859568,132.88,132.85,0.71]
[1763664683252,50.0,132.87,132.85,8.58438112]
[1763664683552,50.0,132.89,132.86,7.87438112]
[1763664683772,5.24591394,132.88,132.86,8.58438112]
[1763664684284,50.0,132.89,132.86,8.58438112]
[1763664685372,50.0,132.87,132.86,61.2]
[1763664685675,57.06504515,132.87,132.86,61.2]
[1763664686180,55.24504515,132.87,132.86,69.07438112]
[1763664686377,50.0,132.87,132.86,69.78438112]
[1763664686864,50.0,132.87,132.86,8.58438112]
[1763664687269,50.0,132.87,132.85,7.87438112]
[1763664687652,50.0,132.87,132.85,8.58438112]
[1763664688263,50.0,132.9,132.86,8.58438112]
[1763664688465,51.82,132.9,132.87,7.87438112]
[1763664688664,51.82,132.9,132.87,8.58438112]
[1763664688978,51.82,132.9,132.88,7.87438112]
[1763664689165,50.0,132.93,132.89,8.58438112]
[1763664689365,1.82,132.92,132.9,7.87438112]
[1763664689668,50.0,132.91,132.88,7.87438112]
[1763664689858,50.0,132.91,132.87,0.71]
[1763664690061,50.68,132.91,132.87,8.58438112]
[1763664690360,50.0,132.89,132.85,18.12096]
[1763664690566,50.68,132.89,132.85,8.58438112]
[1763664691058,50.0,132.89,132.86,0.71]
[1763664692063,50.68,132.89,132.84,18.83096]
[1763664692276,52.5,132.89,132.85,0.71]
[1763664692489,51.82,132.89,132.85,8.58438112]
[1763664692672,52.5,132.89,132.85,8.58438112]
[1763664693591,50.0,132.86,132.8,20.71]
[1763664693754,51.82,132.86,132.81,8.58438112]
[1763664693954,52.5,132.86,132.82,7.87438112]
[1763664694170,7.87438112,132.84,132.8,20.0]
[1763664694397,50.0,132.83,132.81,0.71]
[1763664694687,50.0,132.85,132.82,7.87438112]
[1763664694892,0.68,132.87,132.84,7.87438112]
[1763664694893,50.0,132.87,132.84,7.87438112]
[1763664695074,50.0,132.89,132.86,7.87438112]
[1763664695387,50.0,132.89,132.88,7.87438112]
[1763664695590,50.0,132.92,132.88,7.87438112]
[1763664695889,50.0,132.92,132.9,7.87438112]
[1763664696859,50.0,132.92,132.9,8.58438112]
[1763664697053,50.0,132.92,132.88,0.71]
[1763664697260,50.0,132.92,132.9,7.87438112]
[1763664698192,50.0,132.92,132.83,1.82]
[1763664698193,50.0,132.9,132.83,0.71]
[1763664698395,50.0,132.88,132.85,7.87438112]
[1763664699010,50.0,132.88,132.84,7.87438112]
[1763664699216,5.6994956,132.87,132.8,20.0]
[1763664699372,50.0,132.84,132.8,20.0]
[1763664699575,50.0,132.86,132.81,0.71]
[1763664700000,50.68,132.86,132.81,8.58438112]
[1763664700167,50.68,132.86,132.81,0.71]
[1763664700364,50.68,132.86,132.82,0.71]
[1763664701175,50.0,132.86,132.82,0.71]
[1763664701369,50.68,132.88,132.83,7.87438112]
[1763664701609,50.0,132.86,132.8,20.71]
[1763664701904,50.0,132.86,132.82,7.87438112]
[1763664702269,50.0,132.86,132.82,0.71]
[1763664702466,50.0,132.86,132.82,8.58438112]
[1763664702802,52.5,132.88,132.83,7.87438112]
[1763664703170,0.68,132.87,132.83,0.71]
[1763664703366,50.0,132.86,132.83,0.71]
[1763664703672,50.0,132.86,132.82,7.87438112]
[1763664703867,50.0,132.86,132.83,7.87438112]
[1763664704182,52.5,132.88,132.83,7.87438112]
[1763664704384,5.02231077,132.87,132.83,8.58438112]
[1763664704902,5.70231077,132.87,132.83,8.58438112]
[1763664705068,50.0,132.86,132.83,8.58438112]
[1763664705267,0.68,132.87,132.83,0.71]
[1763664705475,51.82,132.88,132.84,0.71]
[1763664705695,5.0221026,132.87,132.84,0.71]
[1763664706113,52.5,132.88,132.84,8.58438112]
[1763664706612,51.82,132.88,132.84,8.58438112]
[1763664706780,51.82,132.88,132.8,27.87438112]
[1763664706976,50.0,132.88,132.85,7.87438112]
[1763664707387,50.0,132.88,132.85,8.58438112]
[1763664708408,50.0,132.88,132.82,0.71]
[1763664708409,50.0,132.86,132.82,0.71]
[1763664708578,50.0,132.86,132.8,20.0]
[1763664708784,50.68,132.86,132.81,0.71]
[1763664708987,0.68,132.85,132.81,0.71]
[1763664709306,5.70208945,132.85,132.81,0.71]
[1763664709487,50.0,132.84,132.81,0.71]
[1763664709694,1.82,132.85,132.81,0.71]
[1763664709998,1.82,132.85,132.82,7.87438112]
[1763664710313,1.82,132.85,132.82,8.58438112]
[1763664710781,50.0,132.86,132.83,8.58438112]
[1763664710984,50.0,132.86,132.84,7.87438112]
[1763664711182,50.0,132.88,132.85,8.58438112]
[1763664711387,50.0,132.88,132.87,7.87438112]
[1763664711795,1.82,132.9,132.87,8.58438112]
[1763664711995,6.99508075,132.94,132.89,7.87438112]
[1763664711996,50.0,132.93,132.89,7.87438112]
[1763664712183,51.82,132.93,132.89,0.71]
[1763664712383,5.02383457,132.92,132.9,0.71]
[1763664712603,51.82,132.93,132.91,7.87438112]
[1763664713020,52.52,132.93,132.89,7.87438112]
[1763664713210,5.02461085,132.92,132.88,7.87438112]
[1763664713405,50.0,132.91,132.88,7.87438112]
[1763664713601,50.0,132.91,132.89,0.71]
[1763664713801,50.0,132.91,132.88,7.87438112]
[1763664714002,50.0,132.93,132.89,8.58438112]
[1763664714218,5.02388486,132.92,132.89,8.58438112]
[1763664714424,5.02388486,132.92,132.9,7.87438112]
[1763664714626,5.02388486,132.92,132.9,8.58438112]
[1763664714925,50.0,132.93,132.9,8.58438112]
[1763664715297,50.0,132.93,132.85,61.2]
[1763664715298,50.7,132.93,132.89,7.87438112]
[1763664715497,50.7,132.93,132.89,8.58438112]
[1763664716421,0.7,132.92,132.87,0.71]